lending/lending_fUSD_20251121
["ID","MTS","AMOUNT","RATE_DAILY","PERIOD"]
[394564856,1763716241576,-206.47367416,0.00016773,2]
[394564857,1763716241586,-616.41243902,0.00016773,2]
[394564858,1763716241596,-327.76831071,0.00016773,2]
[394564859,1763716241606,-500.95237749,0.00016773,2]
[394564860,1763716241615,-500.0,0.00016773,2]
[394564861,1763716241624,-415.16633773,0.00016773,2]
[394564862,1763716241638,-500.0,0.00016773,2]
[394564863,1763716241649,-500.0,0.00016773,2]
[394564864,1763716241659,-500.0,0.00016773,2]
[394564865,1763716241669,-500.0,0.00016773,2]
[394564866,1763716241678,-365.08659521,0.00016773,2]
[394564867,1763716241688,-500.0,0.00016773,2]
[394564868,1763716241699,-500.0,0.00016773,2]
[394564869,1763716241708,-502.27378184,0.00016773,2]
[394564870,1763716241718,-501.54530513,0.00016773,2]
[394564871,1763716241729,-500.0,0.00016773,2]
[394564872,1763716241740,-166.17394122,0.00016773,2]
[394564873,1763716241751,-500.0,0.00016773,2]
[394564874,1763716241760,-298.42345277,0.00016773,2]
[394564875,1763716241771,-500.0,0.00016773,2]
[394564876,1763716241781,-500.743478,0.00016773,2]
[394564877,1763716241792,-5891.64739627,0.00016783,2]
[394564878,1763716241803,-1216.86095147,0.00016785,2]
[394564879,1763716241813,-10030.63376371,0.00016792,2]
[394564880,1763716241823,-1265.21,0.00016795,2]
[394564881,1763716241833,-701.23,0.00016795,2]
[394564882,1763716241844,-2300.0,0.000168,6]
[394564883,1763716241854,-7237.0,0.00016818,2]
[394564884,1763716241864,-10030.63376371,0.00016819,2]
[394564885,1763716241874,-151.0,0.00016819,2]
[394564886,1763716241883,-452.018918,0.00016819,2]
[394564887,1763716241894,-242.910237,0.00016819,2]
[394564888,1763716241904,-151.0,0.00016819,2]
[394564889,1763716241914,-452.018918,0.00016819,2]
[394564890,1763716241924,-452.018918,0.00016819,2]
[394564891,1763716241933,-242.910237,0.00016819,2]
[394564892,1763716241943,-452.018918,0.00016819,2]
[394564893,1763716241954,-242.910237,0.00016819,2]
[394564894,1763716241964,-242.910237,0.00016819,2]
[394564895,1763716241973,-151.0,0.00016819,2]
[394564896,1763716241983,-151.0,0.00016819,2]
[394564897,1763716241993,-5891.64739627,0.00016822,2]
[394564898,1763716242003,-283.33486877,0.00016829,2]
[394564899,1763716242013,-3399.80989,0.0001683,2]
[394564900,1763716242023,-151.0,0.0001683,2]
[394564901,1763716242032,-151.0,0.0001683,2]
[394564902,1763716242042,-566.821076,0.0001683,2]
[394564903,1763716242052,-566.821076,0.0001683,2]
[394564904,1763716242062,-957.486529,0.0001683,2]
[394564905,1763716242072,-566.821076,0.0001683,2]
[394564906,1763716242083,-566.821076,0.0001683,2]
[394564907,1763716242092,-957.486529,0.0001683,2]
[394564908,1763716242102,-435.308615,0.0001683,2]
[394564909,1763716242112,-957.486529,0.0001683,2]
[394564910,1763716242122,-435.308615,0.0001683,2]
[394564911,1763716242132,-957.486529,0.0001683,2]
[394564912,1763716242142,-435.308615,0.0001683,2]
[394564913,1763716242152,-435.308615,0.0001683,2]
[394564914,1763716242161,-151.0,0.0001683,2]
[394564915,1763716242171,-151.0,0.0001683,2]
[394564916,1763716242181,-151.0,0.0001683,2]
[394564917,1763716242191,-151.0,0.0001683,2]
[394564918,1763716242202,-761.785818,0.0001683,2]
[394564919,1763716242211,-168.886823,0.0001683,2]
[394564920,1763716242221,-761.785818,0.0001683,2]
[394564921,1763716242231,-168.886823,0.0001683,2]
[394564922,1763716242242,-761.785818,0.0001683,2]
[394564923,1763716242256,-168.886823,0.0001683,2]
[394564924,1763716242266,-761.785818,0.0001683,2]
[394564925,1763716242277,-168.886823,0.0001683,2]
[394564926,1763716242287,-10030.63376371,0.00016846,2]
[394564927,1763716242297,-5891.64739627,0.00016861,2]
[394564928,1763716242307,-500.0,0.00016864,2]
[394564929,1763716242317,-500.0,0.00016864,2]
[394564930,1763716242329,-500.0,0.00016864,2]
[394564931,1763716242339,-200.0,0.00016864,2]
[394564932,1763716242349,-10030.63376371,0.00016873,2]
[394564933,1763716242358,-1007.87207713,0.00016886,2]
[394564934,1763716242368,-500.0,0.00016899,2]
[394564935,1763716242378,-535.46566359,0.00016899,2]
[394564936,1763716242388,-500.0,0.00016899,2]
[394564937,1763716242398,-500.0,0.00016899,2]
[394564938,1763716242407,-500.0,0.00016899,2]
[394564939,1763716242417,-512.83968365,0.00016899,2]
[394564940,1763716242427,-515.01217463,0.00016899,2]
[394564941,1763716242437,-2900.0,0.000169,6]
[394564942,1763716242447,-1511.72322335,0.000169,2]
[394564943,1763716242456,-10030.63376371,0.000169,2]
[394564944,1763716242466,-5891.64739627,0.000169,2]
[394564945,1763716242476,-1040.91636878,0.000169,2]
[394564946,1763716242485,-405.2394795,0.000169,2]
[394564947,1763716242495,-223.69378531,0.000169,2]
[394564948,1763716242504,-4789.77141882,0.000169,2]
[394564949,1763716242513,-5888.0,0.00016921,2]
[394564950,1763716242522,-9083.06,0.00016922,2]
[394564951,1763716242531,-150.99,0.00016922,2]
[394564952,1763716242541,-19138.64,0.00016922,2]
[394564953,1763716242551,-999.99,0.00016922,2]
[394564954,1763716242561,-875.78,0.00016922,2]
[394564955,1763716242570,-341.88825471,0.00016933,2]
[394564956,1763716242579,-150.0,0.00016937,2]
[394564957,1763716242589,-150.0,0.00016937,2]
[394564958,1763716242599,-150.0,0.00016937,2]
[394564959,1763716242609,-500.0,0.00016937,2]
[394564960,1763716242619,-200.0,0.00016937,2]
[394564961,1763716242629,-207.82405323,0.00016937,2]
[394564962,1763716242638,-150.0,0.00016937,2]
[394564963,1763716242648,-500.0,0.00016937,2]
[394564964,1763716242658,-200.0,0.00016937,2]
[394564965,1763716242667,-200.0,0.00016937,2]
[394564966,1763716242678,-500.0,0.00016937,2]
[394564967,1763716242688,-500.0,0.00016937,2]
[394564968,1763716242698,-500.0,0.00016937,2]
[394564969,1763716242707,-150.0,0.00016937,2]
[394564970,1763716242717,-500.0,0.00016937,2]
[394564971,1763716242727,-150.0,0.00016937,2]
[394564972,1763716242737,-331.35694762,0.0001694,2]
[394564973,1763716242747,-3399.80989,0.0001695,2]
[394564974,1763716242756,-739.0,0.00016959,2]
[394564975,1763716242767,-501.17769255,0.00016973,2]
[394564976,1763716242777,-500.0,0.00016973,2]
[394564977,1763716242787,-501.42210277,0.00016973,2]
[394564978,1763716242796,-500.93008745,0.00016973,2]
[394564979,1763716242806,-502.46688489,0.00016973,2]
[394564980,1763716242817,-300.0,0.00016973,2]
[394564981,1763716242827,-500.0,0.00016973,2]
[394564982,1763716242837,-168.75980871,0.00016973,2]
[394564983,1763716242847,-1054.7472609,0.00016975,2]
[394564984,1763716242857,-1185.400786,0.00016986,2]
[394564985,1763716242866,-1185.400786,0.00016986,2]
[394564986,1763716242876,-1185.400786,0.00016986,2]
[394564987,1763716242886,-1185.400786,0.00016986,2]
[394564988,1763716242897,-404.78164,0.00016986,2]
[394564989,1763716242907,-404.78164,0.00016986,2]
[394564990,1763716242917,-404.78164,0.00016986,2]
[394564991,1763716242926,-404.78164,0.00016986,2]
[394564992,1763716242937,-151.0,0.00016986,2]
[394564993,1763716242947,-151.0,0.00016986,2]
[394564995,1763716242957,-151.0,0.00016986,2]
[394564997,1763716242967,-151.0,0.00016986,2]
[394564998,1763716242976,-151.0,0.00016986,2]
[394564999,1763716242987,-151.0,0.00016986,2]
[394565000,1763716242998,-151.0,0.00016986,2]
[394565001,1763716243007,-151.0,0.00016986,2]
[394565003,1763716243017,-566.821076,0.00016986,2]
[394565005,1763716243027,-566.821076,0.00016986,2]
[394565007,1763716243036,-957.486529,0.00016986,2]
[394565009,1763716243046,-500.0,0.00016986,2]
[394565011,1763716243056,-500.0,0.00016986,2]
[394565013,1763716243066,-566.821076,0.00016986,2]
[394565014,1763716243076,-566.821076,0.00016986,2]
[394565015,1763716243086,-957.486529,0.00016986,2]
[394565016,1763716243095,-435.308615,0.00016986,2]
[394565017,1763716243106,-957.486529,0.00016986,2]
[394565018,1763716243116,-435.308615,0.00016986,2]
[394565019,1763716243127,-957.486529,0.00016986,2]
[394565020,1763716243138,-435.308615,0.00016986,2]
[394565021,1763716243148,-435.308615,0.00016986,2]
[394565022,1763716243158,-151.0,0.00016986,2]
[394565023,1763716243168,-151.0,0.00016986,2]
[394565024,1763716243178,-151.0,0.00016986,2]
[394565025,1763716243188,-151.0,0.00016986,2]
[394565026,1763716243199,-761.785818,0.00016986,2]
[394565027,1763716243209,-168.886823,0.00016986,2]
[394565028,1763716243219,-151.0,0.00016986,2]
[394565029,1763716243230,-761.785818,0.00016986,2]
[394565030,1763716243240,-452.018918,0.00016986,2]
[394565031,1763716243251,-168.886823,0.00016986,2]
[394565032,1763716243264,-761.785818,0.00016986,2]
[394565033,1763716243274,-153.715732,0.00016986,2]
[394565034,1763716243283,-168.886823,0.00016986,2]
[394565035,1763716243293,-452.018918,0.00016986,2]
[394565036,1763716243304,-761.785818,0.00016986,2]
[394565037,1763716243313,-242.910237,0.00016986,2]
[394565038,1763716243323,-168.886823,0.00016986,2]
[394565039,1763716243336,-452.018918,0.00016986,2]
[394565040,1763716243346,-242.910237,0.00016986,2]
[394565041,1763716243356,-452.018918,0.00016986,2]
[394565042,1763716243366,-242.910237,0.00016986,2]
[394565043,1763716243375,-242.910237,0.00016986,2]
[394565044,1763716243385,-151.0,0.00016986,2]
[394565045,1763716243395,-151.0,0.00016986,2]
[394565046,1763716243406,-399031.45,0.00016986,2]
[394565047,1763716243416,-150.0,0.00016986,2]
[394565048,1763716243426,-150.0,0.00016986,2]
[394565049,1763716243435,-150.0,0.00016986,2]
[394565050,1763716243445,-150.0,0.00016986,2]
[394565051,1763716243455,-150.0,0.00016986,2]
[394565052,1763716243464,-155.0,0.0001699,2]
[394565053,1763716243474,-1216.86095147,0.0001699,2]
[394565054,1763716243483,-1007.27970183,0.00016999,5]
[394565055,1763716243493,-300.0,0.00016999,2]
[394565056,1763716243503,-1016.21034057,0.00016999,5]
[394565057,1763716243512,-1016.21034057,0.00016999,5]
[394565058,1763716243522,-1016.21034057,0.00016999,5]
[394565059,1763716243532,-300.0,0.00016999,2]
[394565060,1763716243541,-500.0,0.00016999,2]
[394565061,1763716243551,-506.43849321,0.00016999,2]
[394565062,1763716243560,-500.0,0.00016999,2]
[394565063,1763716243569,-500.0,0.00016999,2]
[394565064,1763716243578,-359.65236462,0.00016999,2]
[394565065,1763716243588,-500.0,0.00016999,2]
[394565066,1763716243598,-500.0,0.00016999,2]
[394565067,1763716243607,-500.0,0.00016999,2]
[394565068,1763716243617,-500.0,0.00016999,2]
[394565069,1763716243627,-1246.91508659,0.00016999,5]
[394565070,1763716243637,-1246.91508659,0.00016999,5]
[394565071,1763716243647,-500.0,0.00016999,2]
[394565072,1763716243657,-500.0,0.00016999,2]
[394565073,1763716243667,-184.87800671,0.00016999,2]
[394565074,1763716243676,-500.0,0.00016999,2]
[394565075,1763716243686,-500.0,0.00016999,2]
[394565076,1763716243697,-500.0,0.00016999,2]
[394565077,1763716243706,-500.0,0.00016999,2]
[394565078,1763716243882,-500.0,0.00016999,2]
[394565079,1763716243893,-500.0,0.00016999,2]
[394565080,1763716243903,-500.0,0.00016999,2]
[394565081,1763716243912,-500.0,0.00016999,2]
[394565083,1763716243922,-500.0,0.00016999,2]
[394565085,1763716243930,-500.0,0.00016999,2]
[394565086,1763716243939,-500.0,0.00016999,2]
[394565087,1763716243951,-496.97189092,0.00016999,2]
[394565088,1763716243960,-500.0,0.00016999,2]
[394565089,1763716243969,-500.0,0.00016999,2]
[394565090,1763716243978,-500.0,0.00016999,2]
[394565091,1763716243987,-407.62527131,0.00016999,2]
[394565092,1763716243996,-500.0,0.00016999,2]
[394565093,1763716244006,-500.0,0.00016999,2]
[394565094,1763716244015,-500.0,0.00016999,2]
[394565095,1763716244024,-500.0,0.00016999,2]
[394565096,1763716244033,-500.0,0.00016999,2]
[394565097,1763716244042,-500.0,0.00016999,2]
[394565098,1763716244051,-500.0,0.00016999,2]
[394565099,1763716244060,-500.0,0.00016999,2]
[394565100,1763716244070,-500.0,0.00016999,2]
[394565101,1763716244079,-500.0,0.00016999,2]
[394565102,1763716244088,-500.0,0.00016999,2]
[394565103,1763716244098,-500.0,0.00016999,2]
[394565104,1763716244108,-500.0,0.00016999,2]
[394565105,1763716244117,-580.54230359,0.00016999,2]
[394565106,1763716244126,-400.0,0.00016999,2]
[394565107,1763716244135,-300.0,0.00016999,2]
[394565108,1763716244144,-500.0,0.00016999,2]
[394565109,1763716244156,-500.0,0.00016999,2]
[394565110,1763716244165,-500.0,0.00016999,2]
[394565111,1763716244175,-500.0,0.00016999,2]
[394565112,1763716244184,-500.0,0.00016999,2]
[394565113,1763716244193,-500.0,0.00016999,2]
[394565114,1763716244205,-500.0,0.00016999,2]
[394565115,1763716244215,-500.0,0.00016999,2]
[394565116,1763716244225,-500.0,0.00016999,2]
[394565117,1763716244234,-500.0,0.00016999,2]
[394565118,1763716244246,-500.0,0.00016999,2]
[394565119,1763716244257,-500.0,0.00016999,2]
[394565120,1763716244266,-500.0,0.00016999,2]
[394565121,1763716244276,-500.0,0.00016999,2]
[394565122,1763716244287,-500.0,0.00016999,2]
[394565123,1763716244296,-500.0,0.00016999,2]
[394565124,1763716244306,-500.0,0.00016999,2]
[394565125,1763716244316,-649.91,0.00016999,2]
[394565126,1763716244325,-649.91,0.00016999,2]
[394565127,1763716244335,-649.91,0.00016999,2]
[394565128,1763716244345,-649.91,0.00016999,2]
[394565129,1763716244355,-649.91,0.00016999,2]
[394565130,1763716244364,-649.91,0.00016999,2]
[394565131,1763716244374,-649.91,0.00016999,2]
[394565132,1763716244384,-649.91,0.00016999,2]
[394565133,1763716244393,-649.91,0.00016999,2]
[394565134,1763716244405,-649.91,0.00016999,2]
[394565135,1763716244414,-649.91,0.00016999,2]
[394565136,1763716244426,-500.0,0.00016999,2]
[394565137,1763716244435,-649.91,0.00016999,2]
[394565138,1763716244445,-649.91,0.00016999,2]
[394565139,1763716244455,-649.91,0.00016999,2]
[394565140,1763716244465,-649.91,0.00016999,2]
[394565141,1763716244475,-649.91,0.00016999,2]
[394565142,1763716244486,-649.91,0.00016999,2]
[394565143,1763716244496,-1096.47,0.00016999,2]
[394565144,1763716244507,-392.64912943,0.00016999,2]
[394565145,1763716244518,-682.56333808,0.00016999,2]
[394565146,1763716244528,-1263.19,0.00016999,2]
[394565147,1763716244538,-1263.19,0.00016999,2]
[394565148,1763716244547,-300.0,0.00016999,2]
[394565149,1763716244557,-1263.19,0.00016999,2]
[394565150,1763716244566,-1263.19,0.00016999,2]
[394565151,1763716244576,-1263.19,0.00016999,2]
[394565152,1763716244586,-1263.19,0.00016999,2]
[394565153,1763716244595,-1263.19,0.00016999,2]
[394565154,1763716244604,-1263.19,0.00016999,2]
[394565155,1763716244614,-1263.19,0.00016999,2]
[394565156,1763716244623,-1263.19,0.00016999,2]
[394565157,1763716244633,-1263.19,0.00016999,2]
[394565158,1763716244642,-1263.19,0.00016999,2]
[394565159,1763716244652,-1263.19,0.00016999,2]
[394565160,1763716244661,-1263.19,0.00016999,2]
[394565161,1763716244671,-1263.19,0.00016999,2]
[394565162,1763716244680,-1263.19,0.00016999,2]
[394565163,1763716244689,-300.0,0.00016999,2]
[394565164,1763716244700,-666.0,0.00016999,2]
[394565165,1763716244709,-500.0,0.00016999,2]
[394565166,1763716244721,-500.0,0.00016999,2]
[394565167,1763716244730,-536.59383314,0.00016999,2]
[394565168,1763716244739,-500.0,0.00016999,2]
[394565169,1763716244749,-500.0,0.00016999,2]
[394565170,1763716244759,-500.0,0.00016999,2]
[394565171,1763716244768,-500.0,0.00016999,2]
[394565172,1763716244777,-500.0,0.00016999,2]
[394565173,1763716244787,-500.0,0.00016999,2]
[394565174,1763716244796,-500.0,0.00016999,2]
[394565175,1763716244806,-500.0,0.00016999,2]
[394565176,1763716244818,-500.0,0.00016999,2]
[394565177,1763716244828,-500.0,0.00016999,2]
[394565178,1763716244837,-500.0,0.00016999,2]
[394565179,1763716244846,-346.61892489,0.00016999,2]
[394565180,1763716244856,-3718693.03462806,0.00017,2]
[394565181,1763716244865,-2000.0,0.00017,2]
[394565182,1763716244874,-642.44,0.00017,2]
[394565183,1763716244884,-1000.0,0.00017,2]
[394565184,1763716244894,-492.586,0.00017,2]
[394565185,1763716244904,-1000.0,0.00017,2]
[394565186,1763716244914,-1000.0,0.00017,2]
[394565187,1763716244924,-159.856,0.00017,2]
[394565188,1763716244936,-250.0,0.00017,2]
[394565189,1763716244946,-2000.0,0.00017,2]
[394565190,1763716244956,-4183.8127783,0.00017,2]
[394565191,1763716244965,-12527.9947841,0.00017,2]
[394565192,1763716244974,-153.029876,0.00017,2]
[394565193,1763716244983,-137625.9390143,0.00017,2]
[394565194,1763716244993,-151.0,0.00017,2]
[394565195,1763716245003,-200.0,0.00017,2]
[394565196,1763716245012,-151.0,0.00017,2]
[394565197,1763716245022,-191.483288,0.00017,2]
[394565198,1763716245032,-2404.1092417,0.00017,2]
[394565199,1763716245041,-155.153218,0.00017,2]
[394565200,1763716245051,-151.0,0.00017,2]
[394565201,1763716245060,-151.0,0.00017,2]
[394565202,1763716245070,-151.0,0.00017,2]
[394565203,1763716245079,-151.0,0.00017,2]
[394565204,1763716245089,-151.0,0.00017,2]
[394565205,1763716245099,-151.0,0.00017,2]
[394565206,1763716245108,-151.0,0.00017,2]
[394565207,1763716245119,-153.892717,0.00017,2]
[394565208,1763716245129,-151.0,0.00017,2]
[394565209,1763716245139,-157.914121,0.00017,2]
[394565210,1763716245148,-151.0,0.00017,2]
[394565211,1763716245158,-155.896795,0.00017,2]
[394565212,1763716245168,-207.924161,0.00017,2]
[394565213,1763716245177,-151.0,0.00017,2]
[394565214,1763716245187,-152.437446,0.00017,2]
[394565215,1763716245196,-153.427975,0.00017,2]
[394565216,1763716245207,-151.0,0.00017,2]
[394565217,1763716245217,-151.0,0.00017,2]
[394565218,1763716245226,-151.0,0.00017,2]
[394565219,1763716245235,-151.0,0.00017,2]
[394565220,1763716245248,-151.0,0.00017,2]
[394565221,1763716245258,-151.0,0.00017,2]
[394565222,1763716245267,-151.0,0.00017,2]
[394565223,1763716245277,-151.0,0.00017,2]
[394565224,1763716245287,-191.393216,0.00017,2]
[394565225,1763716245296,-162.493195,0.00017,2]
[394565226,1763716245306,-153.692557,0.00017,2]
[394565227,1763716245315,-346.464491,0.00017,2]
[394565228,1763716245327,-346.464491,0.00017,2]
[394565229,1763716245337,-346.464491,0.00017,2]
[394565230,1763716245347,-151.0,0.00017,2]
[394565232,1763716245357,-346.464491,0.00017,2]
[394565233,1763716245368,-151.0,0.00017,2]
[394565234,1763716245378,-151.0,0.00017,2]
[394565235,1763716245388,-151.0,0.00017,2]
[394565236,1763716245398,-151.0,0.00017,2]
[394565237,1763716245408,-151.0,0.00017,2]
[394565238,1763716245418,-151.0,0.00017,2]
[394565239,1763716245428,-151.0,0.00017,2]
[394565240,1763716245438,-151.0,0.00017,2]
[394565241,1763716245449,-221.454679,0.00017,2]
[394565242,1763716245458,-152.354002,0.00017,2]
[394565243,1763716245468,-269.572529,0.00017,2]
[394565244,1763716245478,-151.0,0.00017,2]
[394565245,1763716245488,-151.0,0.00017,2]
[394565246,1763716245498,-151.0,0.00017,2]
[394565247,1763716245508,-151.0,0.00017,2]
[394565248,1763716245519,-151.0,0.00017,2]
[394565249,1763716245528,-151.0,0.00017,2]
[394565250,1763716245538,-151.0,0.00017,2]
[394565251,1763716245548,-225.844633,0.00017,2]
[394565252,1763716245558,-157.885908,0.00017,2]
[394565253,1763716245569,-151.0,0.00017,2]
[394565254,1763716245579,-151.0,0.00017,2]
[394565255,1763716245590,-162.924534,0.00017,2]
[394565256,1763716245600,-162.924534,0.00017,2]
[394565257,1763716245610,-162.924534,0.00017,2]
[394565258,1763716245620,-162.924534,0.00017,2]
[394565259,1763716245629,-151.0,0.00017,2]
[394565260,1763716245639,-151.0,0.00017,2]
[394565261,1763716245648,-162.924534,0.00017,2]
[394565262,1763716245658,-162.924534,0.00017,2]
[394565263,1763716245667,-162.924534,0.00017,2]
[394565264,1763716245676,-162.924534,0.00017,2]
[394565265,1763716245686,-151.0,0.00017,2]
[394565266,1763716245695,-151.0,0.00017,2]
[394565267,1763716245705,-151.0,0.00017,2]
[394565268,1763716245714,-151.0,0.00017,2]
[394565269,1763716245724,-151.0,0.00017,2]
[394565270,1763716245734,-151.0,0.00017,2]
[394565271,1763716245747,-151.0,0.00017,2]
[394565272,1763716245756,-151.0,0.00017,2]
[394565273,1763716245766,-157.445923,0.00017,2]
[394565274,1763716245776,-151.0,0.00017,2]
[394565275,1763716245786,-151.0,0.00017,2]
[394565276,1763716245796,-172.023602,0.00017,2]
[394565277,1763716245806,-172.023602,0.00017,2]
[394565278,1763716245816,-151.0,0.00017,2]
[394565279,1763716245826,-151.0,0.00017,2]
[394565280,1763716245835,-172.023602,0.00017,2]
[394565281,1763716245845,-172.023602,0.00017,2]
[394565282,1763716245854,-151.0,0.00017,2]
[394565283,1763716245863,-172.023602,0.00017,2]
[394565284,1763716245873,-151.0,0.00017,2]
[394565285,1763716245884,-172.023602,0.00017,2]
[394565286,1763716245894,-151.0,0.00017,2]
[394565287,1763716245904,-169.401579,0.00017,2]
[394565288,1763716245915,-172.023602,0.00017,2]
[394565289,1763716245926,-172.023602,0.00017,2]
[394565290,1763716245936,-166.0,0.00017,2]
[394565291,1763716245947,-166.0,0.00017,2]
[394565292,1763716245963,-166.0,0.00017,2]
[394565293,1763716245973,-166.0,0.00017,2]
[394565294,1763716245983,-166.0,0.00017,2]
[394565295,1763716245993,-253.61607805,0.00017,2]
[394565296,1763716246003,-151.0,0.00017,2]
[394565297,1763716246013,-151.0,0.00017,2]
[394565298,1763716246023,-151.0,0.00017,2]
[394565311,1763716246230,-151.0,0.00017,2]
[394565312,1763716246240,-157.352375,0.00017,2]
[394565313,1763716246251,-151.0,0.00017,2]
[394565314,1763716246265,-151.0,0.00017,2]
[394565315,1763716246275,-151.0,0.00017,2]
[394565316,1763716246286,-151.0,0.00017,2]
[394565317,1763716246295,-151.0,0.00017,2]
[394565318,1763716246306,-151.0,0.00017,2]
[394565319,1763716246316,-151.0,0.00017,2]
[394565320,1763716246326,-151.0,0.00017,2]
[394565321,1763716246338,-1246.0,0.00017,2]
[394565322,1763716246347,-151.0,0.00017,2]
[394565323,1763716246357,-1246.0,0.00017,2]
[394565324,1763716246367,-151.0,0.00017,2]
[394565325,1763716246377,-151.0,0.00017,2]
[394565326,1763716246386,-1246.0,0.00017,2]
[394565327,1763716246396,-151.0,0.00017,2]
[394565328,1763716246405,-151.0,0.00017,2]
[394565329,1763716246415,-151.0,0.00017,2]
[394565330,1763716246424,-151.0,0.00017,2]
[394565331,1763716246434,-151.0,0.00017,2]
[394565332,1763716246444,-151.0,0.00017,2]
[394565333,1763716246456,-151.0,0.00017,2]
[394565334,1763716246469,-151.0,0.00017,2]
[394565335,1763716246478,-151.0,0.00017,2]
[394565336,1763716246488,-151.0,0.00017,2]
[394565337,1763716246497,-151.0,0.00017,2]
[394565338,1763716246506,-168.3857876,0.00017,2]
[394565339,1763716246516,-151.0,0.00017,2]
[394565340,1763716246525,-151.0,0.00017,2]
[394565341,1763716246534,-151.0,0.00017,2]
[394565342,1763716246543,-151.0,0.00017,2]
[394565343,1763716246553,-152.0,0.00017,2]
[394565344,1763716246562,-151.0,0.00017,2]
[394565345,1763716246572,-151.0,0.00017,2]
[394565346,1763716246582,-152.0,0.00017,2]
[394565347,1763716246592,-154.35323267,0.00017,2]
[394565348,1763716246604,-151.0,0.00017,2]
[394565349,1763716246614,-151.0,0.00017,2]
[394565350,1763716246624,-151.0,0.00017,2]
[394565351,1763716246633,-151.0,0.00017,2]
[394565352,1763716246643,-151.0,0.00017,2]
[394565353,1763716246652,-151.0,0.00017,2]
[394565354,1763716246662,-151.0,0.00017,2]
[394565355,1763716246671,-151.0,0.00017,2]
[394565356,1763716246681,-151.0,0.00017,2]
[394565357,1763716246690,-151.0,0.00017,2]
[394565358,1763716246700,-151.0,0.00017,2]
[394565359,1763716246710,-151.0,0.00017,2]
[394565360,1763716246719,-151.0,0.00017,2]
[394565361,1763716246729,-151.0,0.00017,2]
[394565362,1763716246738,-151.0,0.00017,2]
[394565363,1763716246747,-229.78882936,0.00017,2]
[394565364,1763716246756,-150.0,0.00017,2]
[394565365,1763716246766,-1185.400786,0.00017,2]
[394565366,1763716246775,-1185.400786,0.00017,2]
[394565367,1763716246784,-1185.400786,0.00017,2]
[394565368,1763716246794,-1185.400786,0.00017,2]
[394565369,1763716246803,-1185.400786,0.00017,2]
[394565370,1763716246812,-1185.400786,0.00017,2]
[394565371,1763716246822,-1185.400786,0.00017,2]
[394565372,1763716246831,-1185.400786,0.00017,2]
[394565373,1763716246840,-404.78164,0.00017,2]
[394565374,1763716246853,-404.78164,0.00017,2]
[394565375,1763716246863,-404.78164,0.00017,2]
[394565376,1763716246873,-404.78164,0.00017,2]
[394565377,1763716246882,-404.78164,0.00017,2]
[394565378,1763716246891,-404.78164,0.00017,2]